bitfinex/quotes_BTCUSD_20250522
["timestamp","ask_amount","ask_price","bid_price","bid_amount"]
[1747923671568,0.01000025,111100.0,111090.0,2.08197956]
[1747923671786,0.02800147,111100.0,111090.0,2.08197956]
[1747923672008,0.21702093,111100.0,111090.0,2.05497574]
[1747923672215,0.19901971,111100.0,111090.0,1.86594]
[1747923672412,0.22981971,111100.0,111090.0,2.1349]
[1747923672592,0.26301971,111100.0,111090.0,2.1349]
[1747923673186,0.26301971,111100.0,111080.0,4e-05]
[1747923673187,0.22103574,111090.0,111080.0,4e-05]
[1747923673450,0.3415813,111090.0,111080.0,0.67296]
[1747923673805,0.25203574,111090.0,111080.0,0.67296]
[1747923674631,0.3415813,111090.0,111080.0,0.67296]
[1747923675317,0.3415813,111090.0,111080.0,4e-05]
[1747923675513,0.35612215,111090.0,111080.0,4e-05]
[1747923677059,0.35812215,111090.0,111080.0,4e-05]
[1747923678759,0.36645621,111090.0,111080.0,4e-05]
[1747923679192,0.35191536,111090.0,111080.0,4e-05]
[1747923679382,0.3435813,111090.0,111080.0,4e-05]
[1747923679629,0.1980727,111070.0,111060.0,0.00200777]
[1747923679836,0.1980727,111070.0,111060.0,0.9254027]
[1747923680043,0.18906978,111070.0,111060.0,0.74531987]
[1747923680454,0.22156978,111070.0,111060.0,0.74531987]
[1747923680877,0.22156978,111070.0,111060.0,1.01515987]
[1747923681985,0.22156978,111070.0,111060.0,0.67515987]
[1747923682210,0.34261534,111070.0,111060.0,0.00215987]
[1747923682434,0.34261534,111070.0,111040.0,0.002]
[1747923682435,0.19810838,111050.0,111040.0,0.002]
[1747923682645,0.35025394,111050.0,111040.0,0.002]
[1747923682881,0.37479479,111050.0,111040.0,0.002]
[1747923683527,0.38420295,111050.0,111040.0,0.002]
[1747923684943,0.38620295,111050.0,111040.0,0.002]
[1747923685122,0.37620295,111050.0,111040.0,0.002]
[1747923685318,0.38924914,111050.0,111040.0,0.002]
[1747923685496,0.73924914,111050.0,111040.0,0.002]
[1747923685701,0.7475832,111050.0,111040.0,0.002]
[1747923686752,0.4075832,111050.0,111040.0,0.002]
[1747923686969,0.37620295,111050.0,111040.0,0.002]
[1747923687558,0.38620295,111050.0,111040.0,0.002]
[1747923687789,0.32075394,111050.0,111040.0,0.002]
[1747923688355,0.28965394,111050.0,111040.0,0.002]
[1747923688971,0.31975394,111050.0,111040.0,0.002]
[1747923690596,0.40263906,111050.0,111040.0,0.002]
[1747923692423,0.31975394,111050.0,111040.0,0.002]
[1747923692632,0.28965394,111050.0,111040.0,0.002]
[1747923694109,0.20010838,111050.0,111040.0,0.40388]
[1747923695351,0.23130838,111050.0,111040.0,0.6738]
[1747923695587,0.35355394,111050.0,111040.0,0.27192]
[1747923695796,0.40691906,111050.0,111040.0,0.002]
[1747923696422,0.35355394,111050.0,111040.0,0.002]
[1747923698957,0.32085394,111050.0,111040.0,0.002]
[1747923702859,0.361888,111050.0,111040.0,0.002]
[1747923703493,0.329188,111050.0,111040.0,0.002]
[1747923704321,0.329188,111050.0,111040.0,0.27196]
[1747923704322,0.297988,111050.0,111040.0,0.27196]
[1747923704984,0.20844244,111050.0,111040.0,0.27196]
[1747923705229,0.20844244,111050.0,111040.0,0.61196]
[1747923705895,0.1994379,111050.0,111040.0,4.39838103]
[1747923706100,0.20844277,111050.0,111040.0,4.40738655]
[1747923706302,0.20844277,111050.0,111040.0,4.3989489]
[1747923706529,0.20010871,111050.0,111040.0,4.40795466]
[1747923706736,0.20010871,111050.0,111040.0,1.75783363]
[1747923706960,0.20010871,111050.0,111040.0,1.6069545]
[1747923707368,0.20010871,111050.0,111040.0,1.6396545]
[1747923708470,0.20010871,111050.0,111040.0,1.3696945]
[1747923708701,0.20010871,111050.0,111040.0,1.81967363]
[1747923708898,0.19110392,111050.0,111040.0,2.00879458]
[1747923709944,0.19110392,111050.0,111040.0,1.8101]
[1747923710194,0.18209905,111050.0,111040.0,1.99021527]
[1747923710415,0.18209905,111050.0,111040.0,1.7796]
[1747923710611,0.18209905,111050.0,111040.0,1.95971527]
[1747923710815,0.18209905,111050.0,111040.0,1.7796]
[1747923711032,0.18209905,111050.0,111040.0,2.00132087]
[1747923711388,0.19110392,111050.0,111040.0,2.00132087]
[1747923711594,0.20010854,111050.0,111040.0,2.01032639]
[1747923711794,0.20010854,111050.0,111040.0,2.01933182]
[1747923711992,0.002,111050.0,111040.0,2.40764236]
[1747923712197,0.002,111050.0,111040.0,2.49718792]
[1747923713118,0.01100438,111050.0,111040.0,2.49718792]
[1747923713341,0.02000884,111050.0,111040.0,2.49718792]
[1747923713542,0.02901346,111050.0,111040.0,2.49718792]
[1747923713706,0.02000884,111050.0,111040.0,2.49718792]
[1747923713929,0.02701338,111050.0,111040.0,2.49718792]
[1747923714230,0.01800884,111050.0,111040.0,2.49718792]
[1747923714455,0.01000422,111050.0,111040.0,2.49718792]
[1747923714607,0.0100043,111050.0,111040.0,2.49718792]
[1747923715048,0.001,111050.0,111040.0,2.49718792]
[1747923715266,0.01000422,111050.0,111040.0,2.49718792]
[1747923715628,0.0190086,111050.0,111040.0,2.49718792]
[1747923716030,0.208113,111050.0,111040.0,1.4804]
[1747923716230,0.02801387,111050.0,111040.0,2.36697701]
[1747923716437,0.20811292,111050.0,111040.0,1.68753198]
[1747923716748,0.20811292,111050.0,111040.0,2.70500655]
[1747923717011,0.20811292,111050.0,111040.0,2.16688]
[1747923717221,0.19010384,111050.0,111040.0,1.88019527]
[1747923717423,0.19010384,111050.0,111040.0,1.88920103]
[1747923717624,0.19010384,111050.0,111040.0,1.89820671]
[1747923718513,0.19010384,111050.0,111040.0,1.90721223]
[1747923718926,0.19010384,111050.0,111040.0,1.88920103]
[1747923719110,0.18109905,111050.0,111040.0,1.88920103]
[1747923720239,0.21329905,111050.0,111040.0,0.79116]
[1747923720447,0.21329905,111050.0,111040.0,1.06104]
[1747923720652,0.18109905,111050.0,111040.0,1.06104]
[1747923720891,0.19010384,111050.0,111040.0,6.30016095]
[1747923721095,0.19910871,111050.0,111040.0,6.30916655]
[1747923721306,0.20811333,111050.0,111040.0,6.3507719]
[1747923721505,0.190104,111050.0,111040.0,1.36734]
[1747923721739,0.190104,111050.0,111040.0,1.28764]
[1747923721946,0.190104,111050.0,111040.0,0.002]
[1747923721947,0.21349905,111050.0,111040.0,0.002]
[1747923722180,0.71136336,111050.0,111040.0,0.002]
[1747923722603,0.71976586,111050.0,111040.0,0.002]
[1747923722807,0.22190155,111050.0,111040.0,0.27188]
[1747923723010,0.18950155,111050.0,111040.0,0.27188]
[1747923723453,0.18109905,111050.0,111040.0,0.27188]
[1747923723673,0.18009905,111050.0,111040.0,0.27188]
[1747923723890,0.18209905,111050.0,111040.0,0.27188]
[1747923724311,0.18309905,111050.0,111040.0,0.27188]
[1747923724509,0.18309905,111050.0,111040.0,0.27192]
[1747923724733,0.21439905,111050.0,111040.0,0.00204]
[1747923724942,0.21439905,111050.0,111040.0,0.27196]
[1747923725371,0.18309905,111050.0,111040.0,0.27196]
[1747923725589,0.18309905,111050.0,111040.0,5.50207527]
[1747923725791,0.18309905,111050.0,111040.0,1.70896]
[1747923726618,0.21409905,111050.0,111040.0,0.81636]
[1747923726844,0.21409905,111050.0,111040.0,0.27196]
[1747923727117,0.33384461,111050.0,111040.0,0.27196]
[1747923727785,0.33384461,111050.0,111040.0,0.00204]
[1747923728383,0.38607767,111050.0,111040.0,0.00204]
[1747923728789,0.34224711,111050.0,111040.0,0.00204]
[1747923729694,0.31204711,111050.0,111040.0,0.00204]
[1747923729901,0.34524711,111050.0,111010.0,0.02702328]
[1747923730111,0.19816374,111020.0,111010.0,0.29983492]
[1747923730251,0.19816159,111020.0,111010.0,5.76841106]
[1747923730463,0.02702117,111020.0,111010.0,5.77741885]
[1747923730665,0.20716881,111020.0,111010.0,5.48071213]
[1747923730886,0.198162,111020.0,111010.0,0.82781213]
[1747923731074,0.198162,111020.0,111010.0,1.09773213]
[1747923731288,0.198162,111020.0,111010.0,1.09973213]
[1747923731505,0.198162,111020.0,111010.0,1.10173213]
[1747923731924,0.198162,111020.0,111010.0,1.09973213]
[1747923732243,0.198162,111020.0,111010.0,0.98493213]
[1747923732461,0.198162,111020.0,111010.0,0.98293213]
[1747923732814,0.198162,111020.0,111010.0,0.98393213]
[1747923733072,0.198162,111020.0,111010.0,0.40371213]
[1747923733073,0.230162,111020.0,111010.0,0.40371213]
[1747923733320,0.230162,111020.0,111010.0,0.67363213]
[1747923733544,0.230162,111020.0,111010.0,0.00119213]
[1747923733802,0.35080756,111020.0,111010.0,0.00119213]
[1747923734013,0.35080756,111020.0,110980.0,0.4026]
[1747923734014,0.26091547,110990.0,110980.0,0.4026]
[1747923734226,0.35046103,110990.0,110980.0,0.67302749]
[1747923734439,0.34946103,110990.0,110980.0,0.67302749]
[1747923735337,0.34946103,110990.0,110980.0,0.67502749]
[1747923735549,0.34946103,110990.0,110980.0,0.00450749]
[1747923735768,0.34946103,110990.0,110980.0,0.00550749]
[1747923735769,0.70596619,110990.0,110980.0,0.00550749]
[1747923735981,0.99050704,110990.0,110980.0,0.00550749]
[1747923736177,0.63400188,110990.0,110980.0,0.00550749]
[1747923736454,0.72352339,110990.0,110980.0,0.00554749]
[1747923736888,0.72352339,110990.0,110980.0,0.00354749]
[1747923736889,0.34946103,110990.0,110980.0,0.00354749]
[1747923737514,0.34946103,110990.0,110980.0,0.00254749]
[1747923737920,0.35046103,110990.0,110980.0,0.00254749]
[1747923738103,0.34946103,110990.0,110980.0,0.00254749]
[1747923738304,0.35646103,110990.0,110980.0,0.00254749]
[1747923738805,0.3553512,110990.0,110980.0,0.00254749]
[1747923739055,0.3246512,110990.0,110980.0,0.00254749]
[1747923739969,0.007,110990.0,110980.0,1.67065105]
[1747923740191,0.007,110990.0,110980.0,6.81019661]
[1747923740667,0.00487933,110990.0,110980.0,6.72065105]
[1747923740902,0.003,110990.0,110980.0,6.81019661]
[1747923741123,0.02702522,111000.0,110990.0,0.23762488]
[1747923741328,0.02702514,111000.0,110990.0,5.28762488]
[1747923741538,0.04504258,111000.0,110990.0,5.28762488]
[1747923741954,0.22022276,111000.0,110990.0,5.28762488]
[1747923742163,0.19819762,111000.0,110990.0,2.64898]
[1747923742390,0.19819762,111000.0,110990.0,0.74068]
[1747923742596,0.31794318,111000.0,110990.0,0.67068]
[1747923743452,0.19823366,110980.0,110970.0,0.19825108]
[1747923743677,0.19823366,110980.0,110970.0,2.36317184]
[1747923743892,0.19819366,110980.0,110970.0,2.09673204]
[1747923744393,0.19619366,110980.0,110970.0,0.40083204]
[1747923744654,0.22749366,110980.0,110970.0,0.67083204]
[1747923744895,0.31703922,110980.0,110970.0,0.67283204]
[1747923745081,0.31703922,110980.0,110970.0,0.67287204]
[1747923745380,0.31703922,110980.0,110970.0,0.67587204]
[1747923745611,0.31703922,110980.0,110970.0,0.00515204]
[1747923745829,0.73806278,110980.0,110970.0,0.00515204]
[1747923746060,0.70288007,110980.0,110970.0,0.00519204]
[1747923746298,0.72214132,110980.0,110970.0,0.00519204]
[1747923746804,0.73214132,110980.0,110970.0,0.00519204]
[1747923747030,1.18359938,110980.0,110970.0,0.00319204]
[1747923747198,1.18559938,110980.0,110970.0,0.00319204]
[1747923747398,1.31698304,110980.0,110970.0,0.00319204]
[1747923747627,0.83493412,110980.0,110970.0,0.00319204]
[1747923747859,0.74741261,110980.0,110970.0,0.00019204]
[1747923748091,1.21746153,110980.0,110970.0,0.00019204]
[1747923748260,0.27075137,110970.0,110960.0,0.002]
[1747923748464,0.63033693,110970.0,110960.0,0.002]
[1747923748611,0.65892779,110970.0,110960.0,0.002]
[1747923748826,0.7484493,110970.0,110960.0,0.002]
[1747923749033,0.71985844,110970.0,110960.0,0.002]
[1747923749485,0.36483778,110970.0,110960.0,0.002]
[1747923749726,0.31859693,110970.0,110960.0,0.002]
[1747923749953,0.20325137,110970.0,110960.0,0.47034955]
[1747923750185,0.005,110970.0,110960.0,5.547385]
[1747923750416,0.04304413,110970.0,110960.0,5.56256156]
[1747923750637,0.2080675,110970.0,110960.0,0.89654923]
[1747923750863,0.22327335,110970.0,110960.0,0.92974939]
[1747923751073,0.22327335,110970.0,110960.0,0.9387614]
[1747923751285,0.22127335,110970.0,110960.0,0.9387614]
[1747923751490,0.22127368,110970.0,110960.0,0.94777333]
[1747923751743,0.21627368,110970.0,110960.0,1.33673333]
[1747923751910,0.21627368,110970.0,110960.0,1.3277214]
[1747923752123,0.21026273,110970.0,110960.0,1.3277214]
[1747923752334,0.20125153,110970.0,110960.0,1.31870939]
[1747923752548,0.00901038,110980.0,110970.0,0.19825153]
[1747923752810,0.1982335,110980.0,110970.0,4.45344033]
[1747923753057,0.1982335,110980.0,110970.0,4.46245161]
[1747923753550,0.19821588,110990.0,110980.0,0.01802101]
[1747923753767,0.19821499,110990.0,110980.0,5.5581638]
[1747923753968,0.20722464,110990.0,110980.0,5.5581638]
[1747923754216,0.19821547,110990.0,110980.0,4.2463]
[1747923754383,0.19821547,110990.0,110960.0,0.58922923]
[1747923754384,0.01802207,110970.0,110960.0,0.58922923]
[1747923754596,0.01802207,110970.0,110960.0,0.39096]
[1747923754597,0.2010677,110970.0,110960.0,0.39096]
[1747923754806,0.2010677,110970.0,110960.0,1.06076]
[1747923754807,0.19825145,110970.0,110960.0,1.06076]
[1747923755010,0.19825145,110970.0,110960.0,0.002]
[1747923755011,0.76224342,110970.0,110960.0,0.002]
[1747923756214,0.69039701,110970.0,110960.0,0.002]
[1747923756413,0.69239701,110970.0,110960.0,0.002]
[1747923757800,0.66129701,110970.0,110960.0,0.002]
[1747923758205,0.66229701,110970.0,110960.0,0.002]
[1747923759066,0.63079701,110970.0,110960.0,0.27212]
[1747923759278,0.20125145,110970.0,110960.0,5.52038907]
[1747923759508,0.0120112,110970.0,110960.0,5.52940091]
[1747923759736,0.21026248,110970.0,110960.0,5.56070107]
[1747923759939,0.20125153,110970.0,110960.0,5.35342]
[1747923760128,0.20125153,110970.0,110960.0,5.54267738]
[1747923760365,0.19224033,110970.0,110960.0,5.32212]
[1747923760770,0.65388589,110970.0,110960.0,0.002]
[1747923761006,0.65388589,110970.0,110960.0,0.00204]
[1747923761126,0.73729574,110970.0,110960.0,0.00204]
[1747923761917,0.65388589,110970.0,110960.0,0.00204]
[1747923762532,0.68428589,110970.0,110960.0,0.00204]
[1747923763731,0.18927427,110950.0,110940.0,0.42418296]
[1747923763912,0.18927427,110950.0,110940.0,0.42427446]
[1747923764334,0.61881983,110950.0,110940.0,0.02459446]
[1747923764517,0.76252633,110950.0,110940.0,0.02459446]
[1747923764890,0.68261983,110950.0,110940.0,0.02459446]
[1747923765099,0.65201983,110950.0,110940.0,0.02559446]
[1747923765300,0.65201983,110950.0,110940.0,0.02759446]
[1747923765704,0.61881983,110950.0,110940.0,0.02459446]
[1747923765930,0.65041983,110950.0,110940.0,0.02459446]
[1747923766530,0.65241983,110950.0,110940.0,0.02459446]
[1747923767994,0.65241983,110950.0,110940.0,0.02463446]
[1747923768602,0.65241983,110950.0,110940.0,0.29479446]
[1747923769719,0.68561983,110950.0,110940.0,0.02463446]
[1747923772910,0.70016068,110950.0,110940.0,0.02463446]
[1747923773130,0.71016068,110950.0,110940.0,0.02463446]
[1747923773803,0.70916068,110950.0,110940.0,0.02463446]
[1747923774018,0.71116068,110950.0,110940.0,0.02463446]
[1747923774241,0.80068219,110950.0,110940.0,0.02463446]
[1747923774418,0.79668219,110950.0,110940.0,0.02463446]
[1747923774619,0.81575546,110950.0,110940.0,0.02463446]
[1747923774837,0.81775546,110950.0,110940.0,0.02463446]
[1747923775286,0.84379349,110950.0,110940.0,0.02463446]
[1747923775741,0.62656353,110930.0,110920.0,0.252]
[1747923775953,1.06799466,110930.0,110920.0,0.25215229]
[1747923776618,1.07799466,110930.0,110920.0,0.25215229]
[1747923777103,1.06799466,110930.0,110920.0,0.25215229]
[1747923777301,1.06999466,110930.0,110920.0,0.25215229]
[1747923777468,1.07855732,110930.0,110920.0,0.25215229]
[1747923777687,1.52001538,110930.0,110920.0,0.25215229]
[1747923777890,0.99787175,110930.0,110920.0,0.25215229]
[1747923778422,0.7531309,110930.0,110920.0,0.25215229]
[1747923778691,0.3494309,110930.0,110920.0,0.25215229]
[1747923778948,0.6894309,110930.0,110920.0,0.25215229]
[1747923779162,0.34086824,110930.0,110920.0,0.25215229]
[1747923779380,0.73384055,110930.0,110920.0,0.25215229]
[1747923781479,0.68384055,110930.0,110920.0,0.25215229]
[1747923781637,0.63086824,110930.0,110920.0,0.25215229]
[1747923783119,0.63086824,110930.0,110920.0,0.65127229]
[1747923783940,0.62886824,110930.0,110920.0,0.65127229]
[1747923784350,0.62786824,110930.0,110920.0,0.65227229]
[1747923784561,0.66026824,110930.0,110920.0,0.65227229]
[1747923785003,0.68703033,110930.0,110920.0,0.65227229]
[1747923785204,0.71913033,110930.0,110920.0,0.65227229]
[1747923785406,0.62786824,110930.0,110920.0,0.65227229]
[1747923786056,0.62786824,110930.0,110920.0,0.25315229]
[1747923786255,0.19832268,110930.0,110920.0,0.32848722]
[1747923786453,0.19832268,110930.0,110920.0,4.97398722]
[1747923786686,0.19832268,110930.0,110920.0,2.54068722]
[1747923786841,0.28786824,110930.0,110920.0,1.31171229]
[1747923787052,0.62786824,110930.0,110920.0,0.64231229]
[1747923787252,0.62786824,110930.0,110920.0,1.04147229]
[1747923787465,0.62786824,110930.0,110920.0,0.25315229]
[1747923787698,0.70350909,110930.0,110920.0,0.25315229]
[1747923788584,0.70350909,110930.0,110920.0,0.25215229]
[1747923788988,0.70450909,110930.0,110920.0,0.25215229]
[1747923789351,0.70350909,110930.0,110920.0,0.25215229]
[1747923789601,0.7930306,110930.0,110920.0,0.25215229]
[1747923790211,0.8130306,110930.0,110920.0,0.25215229]
[1747923790444,1.26960901,110930.0,110920.0,0.25215229]
[1747923790647,1.34176234,110930.0,110920.0,0.25215229]
[1747923790811,0.89030428,110930.0,110920.0,0.25215229]
[1747923791025,1.36641624,110930.0,110920.0,0.25215229]
[1747923791222,1.29426291,110930.0,110920.0,0.25215229]
[1747923791435,1.36641624,110930.0,110920.0,0.25215229]
[1747923791667,1.36941624,110930.0,110920.0,0.25215229]
[1747923791867,1.29726291,110930.0,110920.0,0.25215229]
[1747923792427,1.28018324,110930.0,110920.0,0.25215229]
[1747923792855,1.28518324,110930.0,110920.0,0.25215229]
[1747923794661,1.28318324,110930.0,110920.0,0.25215229]
[1747923794880,1.28718324,110930.0,110920.0,0.25215229]
[1747923795612,1.67642324,110930.0,110920.0,0.1713935]
[1747923795818,0.6148993,110910.0,110900.0,0.00204]
[1747923796043,0.55293507,110890.0,110880.0,0.00204]
[1747923796251,0.55293507,110890.0,110860.0,0.002]
[1747923796252,0.57447085,110870.0,110860.0,0.002]
[1747923796471,1.11547447,110870.0,110860.0,0.002]
[1747923796683,0.66401641,110870.0,110860.0,0.002]
[1747923797096,0.68355101,110870.0,110860.0,0.002]
[1747923797528,0.70638947,110870.0,110860.0,0.002]
[1747923797962,0.68355101,110870.0,110860.0,0.002]
[1747923798167,0.66205101,110870.0,110860.0,0.002]
[1747923799333,0.66205101,110870.0,110860.0,0.003]
[1747923799949,0.65251641,110870.0,110860.0,0.003]
[1747923801151,0.64251641,110870.0,110860.0,0.003]
[1747923801805,0.28797556,110870.0,110860.0,0.0337]
[1747923802030,0.28797556,110870.0,110860.0,0.0667]
[1747923802275,0.19843,110870.0,110860.0,0.0667]
[1747923802727,0.19843,110870.0,110860.0,0.45606]
[1747923802942,0.19843,110870.0,110860.0,5.50606]
[1747923803149,0.19843,110870.0,110860.0,3.15746]
[1747923803363,0.19843,110870.0,110860.0,0.99116]
[1747923803549,0.19843,110870.0,110860.0,0.71856]
[1747923804068,0.19843,110870.0,110860.0,0.45606]
[1747923804290,0.19843,110870.0,110860.0,1.12678]
[1747923804506,0.19843,110870.0,110860.0,1.12478]
[1747923804751,0.19842952,110870.0,110860.0,6.72624846]
[1747923804960,0.02705789,110870.0,110860.0,6.73626827]
[1747923805140,0.20744974,110870.0,110860.0,6.7182284]
[1747923805413,0.009019,110870.0,110860.0,6.73276794]
[1747923805627,0.1805107,110890.0,110880.0,0.24157518]
[1747923805845,0.1805107,110890.0,110880.0,0.3316]
[1747923806454,0.0181871,110890.0,110880.0,5.58001228]
[1747923806679,0.20756395,110890.0,110880.0,5.57099385]
[1747923806881,0.20756395,110890.0,110880.0,4.62549385]
[1747923807087,0.21658084,110890.0,110880.0,4.65254922]
[1747923807292,0.20756355,110890.0,110880.0,4.64353095]
[1747923807834,0.20756412,110890.0,110880.0,4.63751244]
[1747923808042,0.19854536,110890.0,110880.0,4.87164556]
[1747923808220,0.21658157,110890.0,110880.0,4.98953087]
[1747923808641,0.009169,110890.0,110880.0,4.98953087]
[1747923808775,0.02720366,110890.0,110880.0,4.99254905]
[1747923809170,0.18232639,110910.0,110900.0,0.61349306]
[1747923809171,0.002,110910.0,110900.0,0.61349306]
[1747923809461,0.002,110910.0,110900.0,6.42219862]
[1747923809462,0.01101558,110910.0,110900.0,6.42219862]
[1747923809675,0.002,110910.0,110900.0,6.42219862]
[1747923810165,0.01101412,110930.0,110920.0,0.27345566]
[1747923810374,0.01116633,110930.0,110920.0,6.32309566]
[1747923810588,0.002,110950.0,110940.0,0.27031828]
[1747923810772,0.0110125,110950.0,110940.0,6.32939828]
[1747923811016,0.03805096,110950.0,110940.0,6.32939844]
[1747923811446,0.03805088,110950.0,110940.0,6.32939836]
[1747923811665,0.03805088,110950.0,110940.0,6.32038497]
[1747923811893,0.21931217,110950.0,110940.0,6.32939844]
[1747923812155,0.0300383,110950.0,110940.0,6.33841175]
[1747923812409,0.02002524,110950.0,110940.0,6.42995731]
[1747923812710,0.20929999,110950.0,110940.0,4.28298]
[1747923812903,0.20028725,110950.0,110940.0,2.95408]
[1747923813388,0.20028725,110950.0,110940.0,3.14137142]
[1747923813521,0.20028725,110950.0,110940.0,2.47229142]
[1747923813710,0.20028725,110950.0,110940.0,3.14137142]
[1747923813906,0.20028725,110950.0,110940.0,2.95208]
[1747923814155,0.19127435,110950.0,110940.0,2.95208]
[1747923814396,0.19127435,110950.0,110940.0,2.95308]
[1747923814607,0.19127435,110950.0,110940.0,2.95692]
[1747923814811,0.19127435,110950.0,110940.0,2.95592]
[1747923815328,0.19127435,110950.0,110940.0,0.004]
[1747923815559,0.35297324,110950.0,110940.0,0.004]
[1747923815773,0.35297324,110950.0,110940.0,0.007]
[1747923816662,0.35297324,110950.0,110940.0,0.67188]
[1747923817336,0.35297324,110950.0,110940.0,0.39864]
[1747923817552,0.41284015,110950.0,110940.0,0.39864]
[1747923818011,0.1893084,110930.0,110920.0,0.45418]
[1747923818230,0.1893084,110930.0,110920.0,1.12306]
[1747923818412,0.00901396,110930.0,110920.0,6.80716057]
[1747923818638,0.002,110950.0,110940.0,0.59139093]
[1747923818855,0.20926409,110970.0,110960.0,0.18925738]
[1747923819091,0.20941507,110970.0,110960.0,3.83686148]
[1747923819333,0.20941507,110970.0,110960.0,3.31384955]
[1747923819558,0.1913926,110970.0,110960.0,3.12459225]
[1747923819802,0.18238116,110970.0,110960.0,1.82019225]
[1747923820035,0.18238116,110970.0,110960.0,1.81118]
[1747923820277,0.19828693,110950.0,110940.0,0.063027]
[1747923820520,0.19828693,110950.0,110940.0,0.3781]
[1747923820734,0.19828693,110950.0,110940.0,1.0469]
[1747923820946,0.19828693,110950.0,110940.0,0.0381]
[1747923821167,0.19828693,110950.0,110940.0,0.7069]
[1747923821377,0.28783249,110950.0,110940.0,0.6738]
[1747923821869,0.28783249,110950.0,110940.0,0.6688]
[1747923822065,0.21635117,110930.0,110920.0,0.4626955]
[1747923822274,0.19832301,110930.0,110920.0,1.12248]
[1747923822478,0.19832301,110930.0,110920.0,1.46248]
[1747923823090,0.00901445,110930.0,110920.0,1.64279013]
[1747923823305,0.20733713,110930.0,110920.0,1.66282089]
[1747923823505,0.19832293,110930.0,110920.0,1.66282105]
[1747923823711,0.01802865,110930.0,110920.0,6.45163623]
[1747923823880,0.20733721,110930.0,110920.0,6.73085133]
[1747923824469,0.20733721,110930.0,110920.0,3.28346626]
[1747923824679,0.01802816,110930.0,110920.0,3.28346626]
[1747923824836,0.00901396,110930.0,110920.0,3.28346626]
[1747923825066,0.03605697,110930.0,110920.0,3.28346626]
[1747923825240,0.02704244,110930.0,110920.0,3.28346626]
[1747923825473,0.00901396,110930.0,110920.0,3.28346626]
[1747923825698,0.02704252,110930.0,110920.0,3.28346626]
[1747923825898,0.01802816,110930.0,110920.0,3.28346626]
[1747923826101,0.02704244,110930.0,110920.0,3.28346626]
[1747923826329,0.0360568,110930.0,110920.0,3.28346626]
[1747923826574,0.18026137,110950.0,110940.0,0.08192751]
[1747923826803,0.18025952,110960.0,110950.0,0.07291306]
[1747923827063,0.18025952,110960.0,110950.0,0.99206]
[1747923827297,0.18222889,110970.0,110950.0,1.53935934]
[1747923827538,0.18222889,110970.0,110960.0,5.7235]
[1747923827539,0.18238116,110970.0,110960.0,5.7235]
[1747923827765,0.18238116,110970.0,110960.0,5.93078124]
[1747923828040,0.18238116,110970.0,110960.0,5.9127573]
[1747923828271,0.20040298,110970.0,110960.0,5.92176923]
[1747923828511,0.20941426,110970.0,110960.0,5.92176923]
[1747923828726,0.20040347,110970.0,110960.0,5.92176923]
[1747923828935,0.20040347,110970.0,110960.0,5.92276923]
[1747923829647,0.20040347,110970.0,110960.0,3.67891722]
[1747923829849,0.20040347,110970.0,110960.0,3.11762939]
[1747923830065,0.19139244,110970.0,110960.0,2.87886]
[1747923830273,0.19139244,110970.0,110960.0,3.05910513]
[1747923830517,0.19139244,110970.0,110960.0,3.07712955]
[1747923830703,0.19139244,110970.0,110960.0,3.07716955]
[1747923831201,0.19139244,110970.0,110960.0,3.08618164]
[1747923832087,0.00215227,110970.0,110960.0,3.19375081]
[1747923832334,0.01116314,110970.0,110960.0,3.19375081]
[1747923832571,0.002,110990.0,110980.0,0.54724356]
[1747923832803,0.002,110990.0,110980.0,6.80676912]
[1747923832804,0.02001842,110990.0,110980.0,6.80676912]
[1747923833238,0.02902799,110990.0,110980.0,6.80676912]
[1747923833462,0.02001842,110990.0,110980.0,6.80676912]
[1747923833683,0.02902791,110990.0,110980.0,6.80676912]
[1747923834566,0.02001842,110990.0,110980.0,6.80676912]
[1747923834807,0.02001826,110990.0,110980.0,6.80676912]
[1747923835025,0.03803716,110990.0,110980.0,6.80676912]
[1747923835235,0.20021563,110990.0,110980.0,1.3976]
[1747923835441,0.27236896,110990.0,110980.0,1.12744]
[1747923835712,0.27236896,110990.0,110980.0,1.3976]
[1747923835914,0.27236896,110990.0,110980.0,1.39756]
[1747923836123,0.20021563,110990.0,110980.0,1.39756]
[1747923836326,0.20021563,110990.0,110980.0,1.05748]
[1747923836966,0.20021563,110990.0,110980.0,1.11898]
[1747923837413,0.20021563,110990.0,110980.0,0.45042]
[1747923837618,0.20021563,110990.0,110980.0,1.088]
[1747923838079,0.27236896,110990.0,110980.0,1.0572]
[1747923838307,0.27236896,110990.0,110980.0,1.05724]
[1747923838750,0.27236896,110990.0,110980.0,0.38896]
[1747923838970,0.36191452,110990.0,110980.0,0.38896]
[1747923839189,0.36191452,110990.0,110980.0,1.05724]
[1747923839619,0.39241452,110990.0,110980.0,1.05724]
[1747923840059,0.39241452,110990.0,110940.0,0.08222702]
[1747923840060,0.18927097,110960.0,110940.0,0.08222702]
[1747923840277,0.01802507,110950.0,110940.0,0.28290847]
[1747923840490,0.19828298,110960.0,110950.0,0.67701233]
[1747923840491,0.02703586,110960.0,110950.0,0.67701233]
[1747923840709,0.21629251,110960.0,110950.0,0.67701265]
[1747923840954,0.22530476,110960.0,110950.0,0.68602523]
[1747923841203,0.21629324,110960.0,110950.0,0.67701265]
[1747923841421,0.19828709,110950.0,110940.0,0.24792989]
[1747923841647,0.19828709,110950.0,110940.0,5.83740989]
[1747923841905,0.19828709,110950.0,110940.0,6.04605227]
[1747923842124,0.18727427,110950.0,110940.0,6.04905227]
[1747923843244,0.18727427,110950.0,110940.0,6.26894377]
[1747923843457,0.17826137,110950.0,110940.0,6.08866615]
[1747923843677,0.17826137,110950.0,110940.0,6.07965227]
[1747923844129,0.17826137,110950.0,110940.0,5.56527227]
[1747923844354,0.18107819,110950.0,110940.0,0.39707227]
[1747923844569,0.18107819,110950.0,110940.0,1.06535227]
[1747923845208,0.18107819,110950.0,110940.0,0.39407227]
[1747923845433,0.18107819,110950.0,110940.0,0.00215227]
[1747923845434,0.78100941,110950.0,110940.0,0.00215227]
[1747923845657,0.79373344,110950.0,110940.0,0.00215227]
[1747923846337,0.60880693,110950.0,110940.0,0.00219227]
[1747923846549,0.60880693,110950.0,110940.0,0.27227227]
[1747923846767,0.60980693,110950.0,110940.0,0.27227227]
[1747923846987,0.64070693,110950.0,110940.0,0.27227227]
[1747923847213,0.64070693,110950.0,110940.0,0.00219227]
[1747923847214,0.68444778,110950.0,110940.0,0.00219227]
[1747923847422,0.77091707,110950.0,110940.0,0.00219227]
[1747923847632,0.77291707,110950.0,110940.0,0.00219227]
[1747923848060,0.68644778,110950.0,110940.0,0.00219227]
[1747923848702,0.61080693,110950.0,110940.0,0.27231227]